[Event "Wuerttemberg Rapid Teams 2024"]
[Site "B?blingen, Germany"]
[Date "2024.04.13"]
[Round "8.32"]
[White "Merkel, Philip"]
[Black "Kaufmann, Gunther"]
[Result "1/2-1/2"]
[ECO "B22"]
[WhiteElo "1726"]
[BlackElo "1852"]
[Annotator "NA RC COMBH"]
[PlyCount "109"]
[EventDate "2024.04.13"]
[EventType "team-tourn"]
[SourceTitle "playchess.com"]
[Source "ChessBase"]
[SourceQuality "1"]
[TimeControl "900+5"]

1. e4 {[%emt 0:00:02]} c5 {[%emt 0:00:01]} 2. c3 {[%emt 0:00:01]} d5 {[%emt 0:00:04]} 3. exd5 {[%emt 0:00:01]} Qxd5 {[%emt 0:00:01]} 4. Nf3 {[%emt 0:00:01]} Bg4 {[%emt 0:00:07]} 5. Be2 {[%emt 0:00:01]} Nf6 {[%emt 0:00:06]} 6. Na3 {[%emt 0:00:02]} a6 {[%emt 0:00:09]} 7. Nc2 {[%emt 0:00:02]} e6 {[%emt 0:00:22]} 8. Ne3 {[%emt 0:00:01]} Qd8 {[%emt 0:00:24]} 9. Nxg4 {[%emt 0:00:02]} Nxg4 {[%emt 0:00:01]} 10. h3 {[%emt 0:00:08]} Nf6 {[%emt 0:00:04]} 11. d4 {[%emt 0:00:06]} Nc6 {[%emt 0:00:10]} 12. Be3 {[%emt 0:00:01]} cxd4 {[%emt 0:00:06]} 13. Nxd4 {[%emt 0:00:02]} Ne5 {[%emt 0:01:11]} 14. O-O {[%emt 0:03:09]} Be7 {[%emt 0:00:08]} 15. Qc2 {[%emt 0:00:20]} O-O {[%emt 0:00:12]} 16. Rad1 {[%emt 0:00:01]} Qa5 {[%emt 0:00:28]} 17. b3 {[%emt 0:01:08]} Rac8 {[%emt 0:00:16]} 18. c4 {[%emt 0:00:13]} b5 {[%emt 0:00:39]} 19. Nf3 {[%emt 0:03:15]} bxc4 {[%emt 0:01:25]} 20. Nxe5 {[%emt 0:00:30]} cxb3 {[%emt 0:01:33]} 21. Qxb3 {[%emt 0:00:01]} Qxe5 {[%emt 0:00:20]} 22. Bxa6 {[%emt 0:00:36]} Rc3 {[%emt 0:00:49]} 23. Bd4 {[%emt 0:01:09]} Rxb3 {[%emt 0:00:25]} 24. Bxe5 {[%emt 0:00:04]} Ra3 {[%emt 0:00:21]} 25. Bc4 {[%emt 0:00:02]} Ne4 {[%emt 0:01:33]} 26. Rd3 {[%emt 0:00:55]} h6 {[%emt 0:01:30]} 27. Rfd1 {[%emt 0:00:33]} Bc5 {[%emt 0:00:33]} 28. Rxa3 {[%emt 0:00:05]} Bxa3 {[%emt 0:00:03]} 29. Rd7 {[%emt 0:00:50]} Bc5 {[%emt 0:00:43]} 30. Bd4 {[%emt 0:00:31]} Ra8 {[%emt 0:01:15]} 31. Bxc5 {[%emt 0:01:33]} Nxc5 {[%emt 0:00:03]} 32. Rc7 {[%emt 0:00:01]} Ne4 {[%emt 0:00:46]} 33. Rc6 {[%emt 0:01:25]} Nd2 {[%emt 0:00:10]} 34. Bb3 {[%emt 0:00:13]} Nxb3 {[%emt 0:00:13]} 35. axb3 {[%emt 0:00:01]} Rb8 {[%emt 0:00:05]} 36. Rc3 {[%emt 0:00:01]} Kf8 {[%emt 0:00:07]} 37. Kf1 {[%emt 0:00:00]} Ke7 {[%emt 0:00:01]} 38. Ke2 {[%emt 0:00:01]} Kd6 {[%emt 0:00:01]} 39. Kd3 {[%emt 0:00:04]} Kd5 {[%emt 0:00:03]} 40. f3 {[%emt 0:00:13]} Rb7 {[%emt 0:00:06]} 41. Kc2 {[%emt 0:00:05]} e5 {[%emt 0:00:14]} 42. Rc4 {[%emt 0:00:28]} f5 {[%emt 0:00:02]} 43. Kc3 {[%emt 0:00:03]} e4 {[%emt 0:00:14]} 44. fxe4+ {[%emt 0:00:12]} fxe4 {[%emt 0:00:03]} 45. Rd4+ {[%emt 0:00:15]} Ke5 {[%emt 0:00:01]} 46. b4 {[%emt 0:00:10]} Kf4 {[%emt 0:00:30]} 47. g3+ {[%emt 0:00:12]} Kf3 {[%emt 0:00:04]} 48. Kc4 {[%emt 0:00:10]} e3 {[%emt 0:00:07]} 49. Rf4+ {[%emt 0:00:02]} Kxg3 {[%emt 0:00:03]} 50. Re4 {[%emt 0:00:00]} Kf2 {[%emt 0:00:01]} 51. Kd3 {[%emt 0:00:02]} Rd7+ {[%emt 0:00:07]} 52. Kc4 {[%emt 0:00:03]} e2 {[%emt 0:00:03]} 53. Rf4+ {[%emt 0:00:12]} Kg3 {[%emt 0:00:16]} 54. Re4 {[%emt 0:00:01]} Kf3 {[%emt 0:00:01]} 55. Re8 {[%emt 0:00:03]} 1/2-1/2

[Event "Wuerttemberg Rapid Teams 2024"]
[Site "B?blingen, Germany"]
[Date "2024.04.13"]
[Round "8.33"]
[White "Schaefer, Daniel"]
[Black "Foksha, Mischa"]
[Result "1-0"]
[ECO "E91"]
[WhiteElo "1952"]
[BlackElo "2021"]
[Annotator "NA RC"]
[PlyCount "66"]
[EventDate "2024.04.13"]
[EventType "team-tourn"]
[SourceTitle "playchess.com"]
[Source "ChessBase"]
[SourceQuality "1"]
[TimeControl "900+5"]

1. d4 {[%emt 0:00:17]} g6 {[%emt 0:00:05]} 2. c4 {[%emt 0:00:08]} Bg7 {[%emt 0:00:02]} 3. Nc3 {[%emt 0:00:02]} Nf6 {[%emt 0:00:06]} 4. e4 {[%emt 0:00:10]} d6 {[%emt 0:00:05]} 5. Nf3 {[%emt 0:00:11]} O-O {[%emt 0:00:05]} 6. Be2 {[%emt 0:00:02]} Nbd7 {[%emt 0:00:28]} 7. Be3 {[%emt 0:00:20]} b6 {[%emt 0:00:08]} 8. Nd2 {[%emt 0:00:19]} c5 {[%emt 0:00:19]} 9. d5 {[%emt 0:00:01]} Ne5 {[%emt 0:00:28]} 10. h3 {[%emt 0:00:18]} e6 {[%emt 0:00:23]} 11. O-O {[%emt 0:00:16]} exd5 {[%emt 0:00:44]} 12. cxd5 {[%emt 0:00:30]} Ne8 {[%emt 0:00:23]} 13. f4 {[%emt 0:02:07]} Nd7 {[%emt 0:00:08]} 14. Nc4 {[%emt 0:00:37]} a6 {[%emt 0:00:34]} 15. a4 {[%emt 0:00:05]} Rb8 {[%emt 0:00:37]} 16. Nd2 {[%emt 0:02:25]} f5 {[%emt 0:00:27]} 17. exf5 {[%emt 0:00:48]} gxf5 {[%emt 0:00:08]} 18. Bd3 {[%emt 0:00:26]} Nc7 {[%emt 0:01:17]} 19. Qf3 {[%emt 0:00:45]} b5 {[%emt 0:00:25]} 20. axb5 {[%emt 0:00:55]} axb5 {[%emt 0:00:03]} 21. Rab1 {[%emt 0:02:11]} b4 {[%emt 0:00:21]} 22. Ne2 {[%emt 0:00:04]} Nf6 {[%emt 0:00:03]} 23. Ng3 {[%emt 0:00:50]} Nfxd5 {[%emt 0:02:00]} 24. Bf2 {[%emt 0:00:47]} Kh8 {[%emt 0:00:12]} 25. Rfe1 {[%emt 0:00:07]} Qh4 {[%emt 0:00:59]} 26. Nh5 {[%emt 0:00:08]} Qd8 {[%emt 0:01:13]} 27. Nxg7 {[%emt 0:00:05]} Kxg7 {[%emt 0:00:02]} 28. Nc4 {[%emt 0:00:28]} Bb7 {[%emt 0:00:23]} 29. Rbd1 {[%emt 0:00:33]} Kh8 {[%emt 0:00:15]} 30. Qh5 {[%emt 0:00:43]} Nxf4 {[%emt 0:00:30]} 31. Qh6 {[%emt 0:00:01]} Nxg2 {[%emt 0:01:47]} 32. Nxd6 {[%emt 0:00:39]} Nxe1 {[%emt 0:00:19]} 33. Bh4 {[%emt 0:00:21]} Nf3+ {[%emt 0:00:20]} 1-0

[Event "Wuerttemberg Rapid Teams 2024"]
[Site "B?blingen, Germany"]
[Date "2024.04.13"]
[Round "8.34"]
[White "Foksha, Alexander"]
[Black "Lahouel, Kim-Luca"]
[Result "0-1"]
[ECO "D05"]
[WhiteElo "1924"]
[BlackElo "1970"]
[Annotator "TA"]
[PlyCount "40"]
[EventDate "2024.04.13"]
[EventType "team-tourn"]
[SourceTitle "playchess.com"]
[Source "ChessBase"]
[SourceQuality "1"]
[TimeControl "900+5"]

{[%evp 17,40,-22,-35,-22,-18,-47,-7,-14,47,-149,31,29,12,-312,-299,-275,-218,-534,-389,-400,-388,-533,-425,-509,-499]} 1. d4 {[%emt 0:00:02]} d5 {[%emt 0:00:00]} 2. Nf3 {[%emt 0:00:04]} e6 {[%emt 0:00:02]} 3. e3 {[%emt 0:00:07]} c5 {[%emt 0:00:02]} 4. c3 {[%emt 0:00:04]} Nc6 {[%emt 0:00:01]} 5. Bd3 {[%emt 0:00:04]} Nf6 {[%emt 0:00:03]} 6. O-O {[%emt 0:00:05]} Bd6 {[%emt 0:00:02]} 7. Nbd2 {[%emt 0:00:04]} O-O {[%emt 0:00:06]} 8. Qe2 {[%emt 0:00:05]} e5 {[%emt 0:00:23]} 9. dxe5 {[%emt 0:00:29]} Nxe5 {[%emt 0:00:23]} 10. Nxe5 {[%emt 0:00:02]} Bxe5 {[%emt 0:00:01]} 11. e4 {[%emt 0:00:03][%cal Be3e4,Be4e5][%mdl 32]} Re8 {[%emt 0:00:25] next ...Bc7 is good for Black.} 12. f4 {[%emt 0:00:16] The position is equal.} Bg4 {[%emt 0:00:45]} (12... dxe4 $1 $11 13. Bb5 (13. Nxe4 $2 {too greedy.} Bxc3 14. bxc3 Nxe4 $19) 13... Bg4) 13. Qf2 $2 {[%emt 0:02:20] [#]} (13. Qe1 $1 $14 {stays ahead.} Bc7 (13... dxe4 14. fxe5 exd3 15. Qg3 $16) 14. e5) 13... Bc7 $2 {[%emt 0:04:45]} (13... Bxc3 $1 $17 14. bxc3 dxe4) 14. e5 $14 {[%emt 0:00:58][%cal Of2h4] Threatens to win with Qh4!} c4 $1 {[%emt 0:00:15] [#] ...Bb6 would now be deadly.} 15. Qh4 $2 {[%emt 0:00:29][%mdl 8192] This move loses the game for White.} cxd3 $19 {[%emt 0:00:41]} 16. exf6 {[%emt 0:00:18]} Be2 {[%emt 0:00:31] This pair of bishops is nice.} 17. Qg5 $2 {[%emt 0:00:43]} (17. Re1) 17... Qxf6 {[%emt 0:01:44] Active counter play!} 18. Qxf6 {[%emt 0:00:03]} gxf6 {[%emt 0:00:01] White is weak on the light squares} 19. Re1 {[%emt 0:00:02]} Bb6+ {[%emt 0:00:01]} 20. Kh1 {[%emt 0:00:05]} Bf2 {[%emt 0:00:16] Weighted Error Value: White=1.65/Black=0.56.  Loses game:     	White=1     	---        Mistake:       	White=2     	Black=2      Inaccurate:     	White=2     	Black=1      OK:         	White=1     	Black=3      Best:        	White=2     	---        Strong:       	---       	Black=1} 0-1

[Event "Wuerttemberg Rapid Teams 2024"]
[Site "B?blingen, Germany"]
[Date "2024.04.13"]
[Round "8.35"]
[White "Mikeler, Marcel"]
[Black "Hadziselimovic, Adnan"]
[Result "1-0"]
[ECO "D90"]
[WhiteElo "1945"]
[BlackElo "2053"]
[Annotator "RC"]
[PlyCount "83"]
[EventDate "2024.04.13"]
[EventType "team-tourn"]
[SourceTitle "playchess.com"]
[Source "ChessBase"]
[SourceQuality "1"]
[TimeControl "900+5"]

1. d4 {[%emt 0:00:02]} Nf6 {[%emt 0:00:00]} 2. Nf3 {[%emt 0:00:02]} g6 {[%emt 0:00:03]} 3. c4 {[%emt 0:00:03]} Bg7 {[%emt 0:00:02]} 4. Nc3 {[%emt 0:00:01]} d5 {[%emt 0:00:01]} 5. cxd5 {[%emt 0:00:01]} Nxd5 {[%emt 0:00:01]} 6. Qb3 {[%emt 0:00:01]} Nxc3 {[%emt 0:01:33]} 7. bxc3 {[%emt 0:00:03]} O-O {[%emt 0:00:04]} 8. Ba3 {[%emt 0:00:01]} Be6 {[%emt 0:00:05]} 9. Qxb7 {[%emt 0:00:36]} Nd7 {[%emt 0:00:01]} 10. e4 {[%emt 0:00:34]} Nb6 {[%emt 0:00:14]} 11. Be2 {[%emt 0:00:41]} Rb8 {[%emt 0:00:26]} 12. Qa6 {[%emt 0:00:04]} Bc8 {[%emt 0:00:35]} 13. Qd3 {[%emt 0:00:12]} Bb7 {[%emt 0:00:13]} 14. O-O {[%emt 0:00:07]} Qd7 {[%emt 0:00:10]} 15. Rfd1 {[%emt 0:00:20]} Rfd8 {[%emt 0:00:24]} 16. Rac1 {[%emt 0:00:12]} Qa4 {[%emt 0:00:05]} 17. Bxe7 {[%emt 0:00:08]} Re8 {[%emt 0:00:08]} 18. Bh4 {[%emt 0:00:59]} Rxe4 {[%emt 0:00:05]} 19. Bg3 {[%emt 0:00:21]} Rbe8 {[%emt 0:00:06]} 20. Bf1 {[%emt 0:01:57]} c5 {[%emt 0:03:22]} 21. dxc5 {[%emt 0:02:05]} Nc4 {[%emt 0:00:03]} 22. Qd7 {[%emt 0:00:13]} Bc6 {[%emt 0:00:13]} 23. Qc7 {[%emt 0:00:19]} Nb2 {[%emt 0:01:13]} 24. Rd8 {[%emt 0:00:39]} Bh6 {[%emt 0:01:23]} 25. Rb1 {[%emt 0:02:08]} Rxd8 {[%emt 0:02:04]} 26. Qxd8+ {[%emt 0:00:18]} Re8 {[%emt 0:00:02]} 27. Qh4 {[%emt 0:00:12]} Qxa2 {[%emt 0:00:44]} 28. Re1 {[%emt 0:00:45]} Rxe1 {[%emt 0:00:21]} 29. Nxe1 {[%emt 0:00:02]} Qb1 {[%emt 0:00:37]} 30. Qd8+ {[%emt 0:01:12]} Kg7 {[%emt 0:01:40]} 31. Be5+ {[%emt 0:00:05]} f6 {[%emt 0:00:04]} 32. Qxf6+ {[%emt 0:00:47]} Kg8 {[%emt 0:00:01]} 33. Qe6+ {[%emt 0:00:31]} Kf8 {[%emt 0:00:06]} 34. Bd6+ {[%emt 0:00:32]} Kg7 {[%emt 0:00:08]} 35. Be5+ {[%emt 0:00:44]} Kf8 {[%emt 0:00:04]} 36. Qf6+ {[%emt 0:00:02]} Kg8 {[%emt 0:00:07]} 37. Qh8+ {[%emt 0:00:13]} Kf7 {[%emt 0:00:02]} 38. Qf6+ {[%emt 0:00:18]} Kg8 {[%emt 0:00:03]} 39. Qxc6 {[%emt 0:00:06]} Qxe1 {[%emt 0:00:05]} 40. Qe6+ {[%emt 0:00:01]} Kf8 {[%emt 0:00:07]} 41. Bd6+ {[%emt 0:00:02]} Kg7 {[%emt 0:00:04]} 42. Qxe1 {[%emt 0:00:01]} 1-0

[Event "Wuerttemberg Rapid Teams 2024"]
[Site "B?blingen, Germany"]
[Date "2024.04.13"]
[Round "8.36"]
[White "Valchev, Martin V"]
[Black "Dietzel, Lukas"]
[Result "1/2-1/2"]
[ECO "C36"]
[WhiteElo "1529"]
[BlackElo "1782"]
[Annotator "NA RC COMBH"]
[PlyCount "90"]
[EventDate "2024.04.13"]
[EventType "team-tourn"]
[SourceTitle "playchess.com"]
[Source "ChessBase"]
[SourceQuality "1"]
[TimeControl "900+5"]

1. e4 {[%emt 0:00:02]} e5 {[%emt 0:00:01]} 2. f4 {[%emt 0:00:01]} d5 {[%emt 0:00:05]} 3. exd5 {[%emt 0:00:02]} exf4 {[%emt 0:00:02]} 4. Nf3 {[%emt 0:00:02]} Nf6 {[%emt 0:00:11]} 5. Nc3 {[%emt 0:00:03]} Bd6 {[%emt 0:00:16]} 6. Bc4 {[%emt 0:00:45]} Bg4 {[%emt 0:00:15]} 7. O-O {[%emt 0:00:12]} O-O {[%emt 0:00:06]} 8. d4 {[%emt 0:00:38]} Re8 {[%emt 0:00:15]} 9. Nb5 {[%emt 0:00:50]} c6 {[%emt 0:00:33]} 10. Nxd6 {[%emt 0:00:20]} Qxd6 {[%emt 0:00:01]} 11. Qd2 {[%emt 0:02:05]} cxd5 {[%emt 0:00:54]} 12. Bb5 {[%emt 0:00:12]} Rc8 {[%emt 0:01:50]} 13. c3 {[%emt 0:00:32]} a6 {[%emt 0:00:42]} 14. Bd3 {[%emt 0:00:20]} Re8 {[%emt 0:00:42]} 15. Qxf4 {[%emt 0:00:17]} Qxf4 {[%emt 0:01:27]} 16. Bxf4 {[%emt 0:00:03]} Nbd7 {[%emt 0:00:16]} 17. Ne5 {[%emt 0:00:32]} Nxe5 {[%emt 0:00:25]} 18. Bxe5 {[%emt 0:00:04]} Ne4 {[%emt 0:00:07]} 19. h3 {[%emt 0:01:53]} f6 {[%emt 0:01:05]} 20. Bh2 {[%emt 0:00:32]} Bh5 {[%emt 0:00:23]} 21. Rae1 {[%emt 0:00:46]} b5 {[%emt 0:00:33]} 22. Rf4 {[%emt 0:00:27]} Bg6 {[%emt 0:00:18]} 23. Bxe4 {[%emt 0:00:38]} Bxe4 {[%emt 0:00:18]} 24. a3 {[%emt 0:00:10]} Rac8 {[%emt 0:00:12]} 25. Rf2 {[%emt 0:00:08]} Bd3 {[%emt 0:00:52]} 26. Rxe8+ {[%emt 0:00:16]} Rxe8 {[%emt 0:00:02]} 27. Rd2 {[%emt 0:00:27]} Re1+ {[%emt 0:01:35]} 28. Kf2 {[%emt 0:00:01]} Rf1+ {[%emt 0:00:05]} 29. Ke3 {[%emt 0:00:02]} Be4 {[%emt 0:00:10]} 30. Rf2 {[%emt 0:00:14]} Rh1 {[%emt 0:00:13]} 31. Bd6 {[%emt 0:00:07]} Rg1 {[%emt 0:00:10]} 32. g3 {[%emt 0:00:05]} Kf7 {[%emt 0:00:16]} 33. h4 {[%emt 0:00:11]} Ke6 {[%emt 0:00:17]} 34. Bb8 {[%emt 0:00:15]} Rg2 {[%emt 0:00:18]} 35. Rxg2 {[%emt 0:00:04]} Bxg2 {[%emt 0:00:02]} 36. Kf4 {[%emt 0:00:10]} g6 {[%emt 0:00:25]} 37. Ba7 {[%emt 0:00:19]} h6 {[%emt 0:00:19]} 38. Bb6 {[%emt 0:00:30]} g5+ {[%emt 0:00:06]} 39. hxg5 {[%emt 0:00:02]} hxg5+ {[%emt 0:00:15]} 40. Kg4 {[%emt 0:00:18]} Be4 {[%emt 0:00:13]} 41. Bd8 {[%emt 0:00:14]} Kf7 {[%emt 0:00:26]} 42. Kh5 {[%emt 0:00:28]} Bg6+ {[%emt 0:00:12]} 43. Kh6 {[%emt 0:00:09]} Bf5 {[%emt 0:00:08]} 44. Kh5 {[%emt 0:00:10]} Bg6+ {[%emt 0:00:47]} 45. Kg4 {[%emt 0:00:02]} Ke6 {[%emt 0:00:08]} 1/2-1/2

[Event "Wuerttemberg Rapid Teams 2024"]
[Site "B?blingen, Germany"]
[Date "2024.04.13"]
[Round "8.37"]
[White "Li, Yunqi"]
[Black "Notz, Lukas"]
[Result "0-1"]
[ECO "A28"]
[WhiteElo "1940"]
[BlackElo "1986"]
[Annotator "TA"]
[PlyCount "28"]
[EventDate "2024.04.13"]
[EventType "team-tourn"]
[SourceTitle "playchess.com"]
[Source "ChessBase"]
[SourceQuality "1"]
[TimeControl "900+5"]

{[%evp 14,28,27,9,22,24,36,17,30,36,22,33,64,41,49,37,77]} 1. c4 {[%emt 0:00:01]} e5 {[%emt 0:00:04]} 2. Nc3 {[%emt 0:00:04]} Nf6 {[%emt 0:00:08]} 3. Nf3 {[%emt 0:00:03]} Nc6 {[%emt 0:00:04]} 4. e3 {[%emt 0:00:02]} d5 {[%emt 0:00:43]} 5. cxd5 {[%emt 0:00:03]} Nxd5 {[%emt 0:00:02]} 6. Bb5 {[%emt 0:00:01]} Nxc3 {[%emt 0:00:50]} 7. bxc3 {[%emt 0:00:02]} Bd6 {[%emt 0:00:02]} 8. d4 {[%emt 0:00:07]} O-O {[%emt 0:00:03]} 9. Bxc6 {[%emt 0:00:41]} bxc6 {[%emt 0:00:05]} 10. dxe5 {[%emt 0:00:03]} Be7 {[%emt 0:00:20] The position is equal.} 11. O-O {[%emt 0:00:08]} Ba6 {[%emt 0:00:13]} 12. Re1 {[%emt 0:00:12]} Qc8 {[%emt 0:00:19] White is slightly better.} 13. Qa4 {[%emt 0:00:35][%cal Oc1a3]} Bb5 {[%emt 0:00:09]} 14. Qe4 {[%emt 0:00:13]} Rd8 {[%emt 0:00:44][%mdl 32768] Weighted Error Value: White=0.06 (flawless) /Black=0.13 (very precise) .  Inaccurate:     	---       	Black=2      OK:         	White=4     	Black=1     . Loss on time!?} 0-1

[Event "Wuerttemberg Rapid Teams 2024"]
[Site "B?blingen, Germany"]
[Date "2024.04.13"]
[Round "8.38"]
[White "Bodriyenko, Markiyan"]
[Black "Wezel, Sebastian"]
[Result "1-0"]
[ECO "B22"]
[WhiteElo "1728"]
[BlackElo "1907"]
[Annotator "TA"]
[PlyCount "91"]
[EventDate "2024.04.13"]
[EventType "team-tourn"]
[SourceTitle "playchess.com"]
[Source "ChessBase"]
[SourceQuality "1"]
[TimeControl "900+5"]

{[%evp 21,91,0,11,-27,9,-10,0,-31,-27,-27,-24,-27,-12,-34,-28,-40,-32,-43,-47,-72,-62,-68,-25,-101,-77,-77,-75,-97,-82,-98,-85,-89,-84,-87,0,0,0,0,44,50,844,0,0,0,0,0,0,0,364,350,382,381,370,124,120,108,130,75,539,517,2121,2137,1957,1964,1792,1739,29988,502,6199,6185,6087,6078]} 1. e4 {[%emt 0:00:01]} c5 {[%emt 0:00:01]} 2. Nf3 {[%emt 0:00:01]} Nc6 {[%emt 0:00:00]} 3. c3 {[%emt 0:00:01]} d5 {[%emt 0:00:02]} 4. exd5 {[%emt 0:00:01]} Qxd5 {[%emt 0:00:01]} 5. d4 {[%emt 0:00:01]} cxd4 {[%emt 0:00:04]} 6. cxd4 {[%emt 0:00:01]} Bg4 {[%emt 0:00:02]} 7. Be2 {[%emt 0:00:01]} e6 {[%emt 0:00:01]} 8. Nc3 {[%emt 0:00:01]} Qd6 {[%emt 0:00:01]} 9. Be3 {[%emt 0:00:05]} Nf6 {[%emt 0:00:03]} 10. O-O {[%emt 0:00:05]} Be7 {[%emt 0:00:04]} 11. h3 {[%emt 0:00:39]} Bh5 {[%emt 0:00:02]} 12. Qa4 {[%emt 0:01:21]} Qb4 {[%emt 0:01:18]} 13. Qc2 {[%emt 0:00:22]} Bg6 {[%emt 0:00:55]} 14. Bd3 {[%emt 0:00:25] The position is equal.} Bxd3 {[%emt 0:00:25]} 15. Qxd3 {[%emt 0:00:01]} O-O {[%emt 0:00:07]} 16. a3 {[%emt 0:00:09]} Qd6 {[%emt 0:01:12]} 17. Rad1 {[%emt 0:00:28]} Rfd8 {[%emt 0:00:02]} 18. Nb5 {[%emt 0:00:12]} Qd7 {[%emt 0:00:29]} 19. Bf4 {[%emt 0:01:27]} Nd5 {[%emt 0:00:01]} 20. Bg3 {[%emt 0:00:07]} a6 {[%emt 0:04:04]} 21. Nc3 {[%emt 0:00:16]} b5 {[%emt 0:01:01]} 22. b4 {[%emt 0:00:04]} (22. Ne5 $11 {keeps the balance.} Qe8 23. Rc1 Nxe5 24. Bxe5) 22... Nxc3 {[%emt 0:00:13]} 23. Qxc3 {[%emt 0:00:04]} Rac8 {[%emt 0:00:05][%cal Oc6b4] Strongly threatening ...Nxb4!} 24. Qe3 {[%emt 0:00:34][%cal Od4d5]} Bf6 {[%emt 0:00:16]} 25. Ne5 {[%emt 0:00:15]} Qd5 {[%emt 0:00:21]} 26. Nxc6 {[%emt 0:01:04]} Rxc6 {[%emt 0:00:02]} 27. Be5 {[%emt 0:00:15]} Rdc8 {[%emt 0:01:00]} (27... Bxe5 $17 28. dxe5 Qxd1 29. Rxd1 Rxd1+ 30. Kh2 Rd7) 28. Bxf6 $11 {[%emt 0:00:29]} gxf6 {[%emt 0:00:01]} 29. Qf4 {[%emt 0:00:18]} Kg7 {[%emt 0:02:02]} 30. Rd3 {[%emt 0:00:25] Hoping for Rg3+.} Rc3 $2 {[%emt 0:00:13][%mdl 8192]} (30... Qf5 $14 31. Qxf5 exf5) 31. Rfd1 $2 {[%emt 0:00:03]} ({Only move:} 31. Qg3+ $18 Kh8 32. Rxc3) 31... Qg5 {[%emt 0:00:47]} 32. Qf3 {[%emt 0:00:44]} Rxd3 {[%emt 0:00:14]} 33. Rxd3 {[%emt 0:00:10][%cal Bd1d3,Bd3g3,Bg3f3][%mdl 4128] Endgame. KQR-KQR} Rc1+ {[%emt 0:00:20]} 34. Kh2 {[%emt 0:00:01]} Qd5 {[%emt 0:00:40][%mdl 8192]} (34... h5 $11) 35. Qf4 $18 {[%emt 0:00:23]} Rc4 {[%emt 0:00:18]} (35... Qg5 $2 36. Rg3 (36. Qxg5+ fxg5 37. d5 exd5 $11) 36... Rc6 37. Rxg5+ $18) 36. Rg3+ {[%emt 0:00:03]} Kf8 {[%emt 0:00:01]} 37. Qxf6 {[%emt 0:00:27]} (37. Qh6+ $1 $18 Ke7 38. Rg8 (38. Qxh7 Qxd4 39. Rf3 Rc3 $11)) 37... Qxd4 $16 {[%emt 0:00:09] [#]} 38. Qh6+ {[%emt 0:00:06]} Ke7 {[%emt 0:00:07] [#]} 39. Qxh7 {[%emt 0:00:27]} ({Better is} 39. Rf3 $1 Qe5+ 40. g3) 39... Qxf2 $2 {[%emt 0:00:04][%mdl 8192]} (39... Qf4 $16) 40. Rf3 $18 {[%emt 0:00:09]} Qc2 {[%emt 0:00:46]} (40... Qe2 $142 41. Qxf7+ (41. Rxf7+ Kd6 $18) 41... Kd6 42. Qf8+ Kd5 43. Qd8+ Kc6 44. Qa8+ Kb6 45. Qb8+ Kc6) 41. Rxf7+ {[%emt 0:00:27]} Kd6 {[%emt 0:00:00]} 42. Rd7+ {[%emt 0:00:04]} Ke5 {[%emt 0:00:00]} 43. Qg7+ {[%emt 0:00:09]} Ke4 {[%emt 0:00:00]} 44. Re7 {[%emt 0:00:16]} (44. Rd6 $142 Qf2 45. Qg6+ (45. Rxe6+ Kd3 $18) 45... Ke5 46. Qxe6+ (46. Rxa6 Qf4+ 47. Qg3 Qxg3+ 48. Kxg3 Rc3+ 49. Kh4 Rc8 $18) 46... Kf4 47. Qf6+ (47. Rxa6 $2 Qg3+ 48. Kh1 Rc1+) 47... Ke3 48. Re6+ (48. Rxa6 Qxf6 49. Rxf6 Ke4 $18) 48... Re4 49. Qxf2+ (49. Rxa6 Qxf6 50. Rxf6 Kd4 $18) (49. Rxe4+ Kxe4 50. Qxf2 Kd3 51. h4 a5 52. bxa5 Ke4 53. a6 Kd3) 49... Kxf2 50. Rxe4) 44... Rc6 {[%emt 0:00:19] [#]} (44... Kd5 $142 45. Rd7+ Ke4 46. Rd6 Qe2 47. Qg6+ (47. Rxa6 e5 $18) 47... Kf4 48. Qf6+ (48. Rxa6 Qd1 $18) (48. Rxe6 Qxe6 49. Qxe6 Re4 $18) 48... Ke3 49. Qxe6+ (49. Rxa6 Kd3 $18) (49. Rxe6+ Kd3 $18) 49... Kf2 50. Qf6+ (50. Rxa6 Qxe6 51. Rxe6 Rc3 $18) (50. Qf5+ Ke3 51. Qg5+ Kf2 52. Qg3+ Kf1 53. Rf6+ Qf3 54. Rxf3+ Ke2 55. Rf2+ Ke1 56. Qe3+ Kd1 57. Qd2#) 50... Ke3 51. Qe5+ (51. Rxa6 Qc2 $18) 51... Kf2) 45. Rxe6+ $3 {[%emt 0:00:02][%mdl 512]} Rxe6 {[%emt 0:00:44]} 46. Qh7+ {[%emt 0:00:01] Weighted Error Value: White=0.63/Black=0.74.  Loses game:     	---       	Black=3      Missed win:     	White=2     	---        Mistake:       	White=2     	Black=2      Inaccurate:     	White=1     	Black=3      OK:         	White=9     	Black=11     Best:        	White=5     	Black=4} 1-0